[Event "*** Titled Tuesday Blitz"]
[Site "Chess.com"]
[Date "2019.08.06"]
[Round "3"]
[White "Alexander_Donchenko"]
[Black "RegZryt"]
[Result "0-1"]
[WhiteElo "2673"]
[BlackElo "2594"]
[TimeControl "180+2"]
[EndTime "13:35:21 PDT"]
[Termination "RegZryt won by resignation"]

1. c4 {[%clk 0:03:01.9]} 1... e6 {[%clk 0:02:59.8]} 2. g3 {[%clk 0:03:03.4]}
2... d5 {[%clk 0:03:00.9]} 3. Bg2 {[%clk 0:03:05.3]} 3... Nf6 {[%clk 0:03:02.4]}
4. Nf3 {[%clk 0:03:07.1]} 4... Be7 {[%clk 0:03:03.8]} 5. O-O {[%clk 0:03:07.8]}
5... O-O {[%clk 0:03:05.3]} 6. d4 {[%clk 0:03:09.6]} 6... dxc4 {[%clk
0:03:06.4]} 7. Qc2 {[%clk 0:03:11.3]} 7... b6 {[%clk 0:03:07.8]} 8. Ne5 {[%clk
0:03:11.7]} 8... Qxd4 {[%clk 0:03:08.9]} 9. Bxa8 {[%clk 0:03:13.3]} 9... Qxe5
{[%clk 0:03:10]} 10. Bf3 {[%clk 0:03:13.8]} 10... Nd5 {[%clk 0:03:09.9]} 11. Na3
{[%clk 0:03:11.4]} 11... Bxa3 {[%clk 0:03:08.1]} 12. e4 {[%clk 0:02:23]} 12...
Nb4 {[%clk 0:02:46.4]} 13. Qa4 {[%clk 0:01:46.7]} 13... Bxb2 {[%clk 0:02:37.1]}
14. Bxb2 {[%clk 0:00:54.1]} 14... Qxb2 {[%clk 0:02:37.7]} 15. Rab1 {[%clk
0:00:56]} 15... Qc3 {[%clk 0:02:39]} 16. Bg2 {[%clk 0:00:57.7]} 16... Nd3 {[%clk
0:02:24.9]} 17. Qxa7 {[%clk 0:00:56.1]} 17... Na6 {[%clk 0:02:02.5]} 18. a4
{[%clk 0:00:48]} 18... Qa5 {[%clk 0:01:36.9]} 19. Ra1 {[%clk 0:00:45.2]} 19...
c3 {[%clk 0:01:31.3]} 20. Rfd1 {[%clk 0:00:46.2]} 20... Nab4 {[%clk 0:00:37.7]}
21. Qxc7 {[%clk 0:00:39.9]} 21... c2 {[%clk 0:00:36.1]} 22. Rd2 {[%clk 0:00:35]}
22... Qc5 {[%clk 0:00:30.3]} 23. Qxc5 {[%clk 0:00:12]} 23... bxc5 {[%clk
0:00:32.2]} 0-1

[Event "*** Titled Tuesday Blitz"]
[Site "Chess.com"]
[Date "2019.08.06"]
[Round "3"]
[White "Oleg_Papayan"]
[Black "capatl"]
[Result "1-0"]
[WhiteElo "2538"]
[BlackElo "2527"]
[TimeControl "180+2"]
[EndTime "13:35:38 PDT"]
[Termination "Oleg_Papayan won by resignation"]

1. e4 {[%clk 0:03:01.9]} 1... c5 {[%clk 0:03:00.5]} 2. c3 {[%clk 0:03:00.3]}
2... d5 {[%clk 0:02:53]} 3. Bb5+ {[%clk 0:02:55.7]} 3... Bd7 {[%clk 0:02:47.6]}
4. Qe2 {[%clk 0:02:50]} 4... dxe4 {[%clk 0:02:39.5]} 5. Bxd7+ {[%clk 0:02:49.9]}
5... Qxd7 {[%clk 0:02:40.5]} 6. Qxe4 {[%clk 0:02:51.8]} 6... Nf6 {[%clk
0:02:40.1]} 7. Qe2 {[%clk 0:02:51.6]} 7... Nc6 {[%clk 0:02:37.8]} 8. Nf3 {[%clk
0:02:53.1]} 8... e6 {[%clk 0:02:34.3]} 9. O-O {[%clk 0:02:53.8]} 9... Rd8 {[%clk
0:02:22.6]} 10. d4 {[%clk 0:02:31.7]} 10... cxd4 {[%clk 0:02:19.2]} 11. cxd4
{[%clk 0:02:32.9]} 11... Nxd4 {[%clk 0:02:09.4]} 12. Nxd4 {[%clk 0:02:34.8]}
12... Qxd4 {[%clk 0:02:09.8]} 13. Be3 {[%clk 0:02:36.4]} 13... Qd3 {[%clk
0:01:48.7]} 14. Qxd3 {[%clk 0:02:29.9]} 14... Rxd3 {[%clk 0:01:50.6]} 15. Bxa7
{[%clk 0:02:31.8]} 15... Nd5 {[%clk 0:01:45.9]} 16. Nc3 {[%clk 0:02:26.7]} 16...
Nxc3 {[%clk 0:01:27.6]} 17. bxc3 {[%clk 0:02:26.1]} 17... Rxc3 {[%clk 0:00:53]}
18. Rab1 {[%clk 0:02:26.4]} 18... Rc7 {[%clk 0:00:49.8]} 19. Bb8 {[%clk
0:02:24.8]} 19... Rd7 {[%clk 0:00:47.7]} 20. Rfc1 {[%clk 0:02:25.9]} 20... Be7
{[%clk 0:00:42.4]} 21. Rc7 {[%clk 0:02:13.5]} 21... Rxc7 {[%clk 0:00:42.1]} 22.
Bxc7 {[%clk 0:02:14.3]} 22... Kd7 {[%clk 0:00:40.9]} 23. Be5 {[%clk 0:02:02.9]}
23... Kc6 {[%clk 0:00:27.3]} 24. Bxg7 {[%clk 0:02:03.5]} 24... Ra8 {[%clk
0:00:26.5]} 25. Rb2 {[%clk 0:02:01.8]} 25... Rd8 {[%clk 0:00:20.6]} 26. g3
{[%clk 0:01:58.9]} 26... Rd1+ {[%clk 0:00:19.6]} 27. Kg2 {[%clk 0:02:00]} 27...
Rd5 {[%clk 0:00:21.5]} 28. h4 {[%clk 0:02:00.4]} 28... Bc5 {[%clk 0:00:22.3]}
29. f4 {[%clk 0:01:52]} 29... b6 {[%clk 0:00:24.2]} 30. Be5 {[%clk 0:01:38.3]}
30... Rd3 {[%clk 0:00:24.6]} 31. h5 {[%clk 0:01:36.8]} 31... Rd5 {[%clk
0:00:24.9]} 32. g4 {[%clk 0:01:34.6]} 32... Bd4 {[%clk 0:00:25]} 33. Rc2+ {[%clk
0:01:35.3]} 33... Kb7 {[%clk 0:00:25.4]} 34. Rc7+ {[%clk 0:01:24.7]} 34... Kb8
{[%clk 0:00:18.3]} 35. Rxf7+ {[%clk 0:01:17]} 35... Bxe5 {[%clk 0:00:19.6]} 36.
fxe5 {[%clk 0:01:18.9]} 36... Rxe5 {[%clk 0:00:21.2]} 37. Rxh7 {[%clk
0:01:10.9]} 37... Re2+ {[%clk 0:00:22.4]} 38. Kg3 {[%clk 0:01:09]} 38... Rxa2
{[%clk 0:00:24.3]} 39. h6 {[%clk 0:01:10.1]} 39... Ra1 {[%clk 0:00:23]} 40. Rg7
{[%clk 0:01:08]} 40... Rh1 {[%clk 0:00:24]} 41. h7 {[%clk 0:01:09.3]} 41... b5
{[%clk 0:00:24.8]} 42. Rg8+ {[%clk 0:01:10.4]} 42... Kc7 {[%clk 0:00:25.6]} 43.
h8=Q {[%clk 0:01:11.7]} 1-0

[Event "*** Titled Tuesday Blitz"]
[Site "Chess.com"]
[Date "2019.08.06"]
[Round "3"]
[White "catalin009"]
[Black "KuzubovYuriy"]
[Result "0-1"]
[WhiteElo "2632"]
[BlackElo "2628"]
[TimeControl "180+2"]
[EndTime "13:35:40 PDT"]
[Termination "KuzubovYuriy won by resignation"]

1. Nf3 {[%clk 0:03:00.6]} 1... d5 {[%clk 0:02:58.3]} 2. g3 {[%clk 0:03:01.6]}
2... c5 {[%clk 0:02:58.5]} 3. Bg2 {[%clk 0:03:02.6]} 3... g6 {[%clk 0:02:59.9]}
4. O-O {[%clk 0:03:01.8]} 4... Bg7 {[%clk 0:03:01.1]} 5. d4 {[%clk 0:03:02.1]}
5... cxd4 {[%clk 0:03:03]} 6. Nxd4 {[%clk 0:03:03.1]} 6... e5 {[%clk 0:03:04.5]}
7. Nb3 {[%clk 0:03:04.4]} 7... Ne7 {[%clk 0:03:05.6]} 8. c4 {[%clk 0:02:58.2]}
8... d4 {[%clk 0:03:04.7]} 9. f4 {[%clk 0:02:50.4]} 9... Nbc6 {[%clk 0:02:58.9]}
10. Nc5 {[%clk 0:02:41]} 10... O-O {[%clk 0:02:54.3]} 11. Nd3 {[%clk 0:02:35.7]}
11... Be6 {[%clk 0:02:38.9]} 12. b3 {[%clk 0:02:07.2]} 12... Nf5 {[%clk
0:02:37.4]} 13. Na3 {[%clk 0:02:01.8]} 13... Qe7 {[%clk 0:02:31.9]} 14. Nc2
{[%clk 0:02:02.2]} 14... Rfe8 {[%clk 0:02:28.2]} 15. Ba3 {[%clk 0:01:56.5]}
15... Qc7 {[%clk 0:02:28.9]} 16. Qe1 {[%clk 0:01:47.1]} 16... Rad8 {[%clk
0:02:10.6]} 17. g4 {[%clk 0:01:32.4]} 17... Nfe7 {[%clk 0:01:57]} 18. Qh4 {[%clk
0:01:24.2]} 18... f5 {[%clk 0:01:51.2]} 19. h3 {[%clk 0:01:09.7]} 19... e4
{[%clk 0:01:50.2]} 20. Nc5 {[%clk 0:01:09.2]} 20... Bc8 {[%clk 0:01:45]} 21.
Rad1 {[%clk 0:01:09.6]} 21... b6 {[%clk 0:01:42.5]} 22. Na4 {[%clk 0:01:07.6]}
22... Be6 {[%clk 0:01:17.1]} 23. Kh1 {[%clk 0:00:56.8]} 23... Kh8 {[%clk
0:01:10.2]} 24. Qf2 {[%clk 0:00:48]} 24... fxg4 {[%clk 0:00:59.9]} 25. hxg4
{[%clk 0:00:47.6]} 25... Bxg4 {[%clk 0:01:00.3]} 26. Bxe4 {[%clk 0:00:48.9]}
26... Nf5 {[%clk 0:00:59.6]} 27. Bd5 {[%clk 0:00:31.7]} 27... Nce7 {[%clk
0:00:51.2]} 28. Bg2 {[%clk 0:00:25.6]} 28... Ng8 {[%clk 0:00:31.9]} 29. Nb2
{[%clk 0:00:21.1]} 29... Rxe2 {[%clk 0:00:28.9]} 0-1

[Event "*** Titled Tuesday Blitz"]
[Site "Chess.com"]
[Date "2019.08.06"]
[Round "3"]
[White "IMDT02"]
[Black "NoGalloNoParty"]
[Result "1-0"]
[WhiteElo "2536"]
[BlackElo "2317"]
[TimeControl "180+2"]
[EndTime "13:35:41 PDT"]
[Termination "IMDT02 won by resignation"]

1. d4 {[%clk 0:03:01.9]} 1... Nf6 {[%clk 0:03:00.2]} 2. Bf4 {[%clk 0:03:01.7]}
2... g6 {[%clk 0:03:00.7]} 3. e3 {[%clk 0:03:02.4]} 3... Bg7 {[%clk 0:03:01.4]}
4. Nf3 {[%clk 0:03:03.5]} 4... O-O {[%clk 0:03:02]} 5. h3 {[%clk 0:03:04.9]}
5... c5 {[%clk 0:03:02]} 6. c3 {[%clk 0:03:05.7]} 6... d6 {[%clk 0:03:02.5]} 7.
Be2 {[%clk 0:03:04.9]} 7... b6 {[%clk 0:03:03.5]} 8. O-O {[%clk 0:03:04.9]} 8...
Bb7 {[%clk 0:03:04.5]} 9. Nbd2 {[%clk 0:03:05.9]} 9... Nbd7 {[%clk 0:03:04.1]}
10. Bh2 {[%clk 0:03:07.1]} 10... a6 {[%clk 0:02:58.7]} 11. a4 {[%clk 0:03:07.3]}
11... Ra7 {[%clk 0:02:58.7]} 12. Qb3 {[%clk 0:02:58.5]} 12... Qa8 {[%clk
0:02:56.7]} 13. Rfe1 {[%clk 0:02:39.1]} 13... Ne4 {[%clk 0:02:54.9]} 14. Nxe4
{[%clk 0:02:34.3]} 14... Bxe4 {[%clk 0:02:55.5]} 15. Red1 {[%clk 0:02:24.6]}
15... cxd4 {[%clk 0:01:53.5]} 16. exd4 {[%clk 0:02:20.9]} 16... Rc7 {[%clk
0:01:46.6]} 17. Ne1 {[%clk 0:02:05]} 17... Qb7 {[%clk 0:01:30.2]} 18. Bf3 {[%clk
0:02:02.5]} 18... Nf6 {[%clk 0:01:21.1]} 19. Bxe4 {[%clk 0:01:53.2]} 19... Nxe4
{[%clk 0:01:21.7]} 20. Nd3 {[%clk 0:01:44.1]} 20... Rcc8 {[%clk 0:01:19.3]} 21.
Re1 {[%clk 0:01:43.5]} 21... d5 {[%clk 0:01:11.4]} 22. Re2 {[%clk 0:01:19.8]}
22... Rfd8 {[%clk 0:01:06.3]} 23. f3 {[%clk 0:01:18.5]} 23... Nd6 {[%clk
0:01:05.5]} 24. a5 {[%clk 0:01:19.1]} 24... bxa5 {[%clk 0:00:39.3]} 25. Qxb7
{[%clk 0:00:45.8]} 25... Nxb7 {[%clk 0:00:39.7]} 26. Rxe7 {[%clk 0:00:47.1]}
26... Nd6 {[%clk 0:00:40.7]} 27. Rxa5 {[%clk 0:00:44.3]} 27... Nc4 {[%clk
0:00:22.8]} 28. Rxa6 {[%clk 0:00:37.9]} 28... Re8 {[%clk 0:00:20.5]} 29. Raa7
{[%clk 0:00:32.7]} 29... Rxe7 {[%clk 0:00:21.4]} 30. Rxe7 {[%clk 0:00:34.6]}
30... Rb8 {[%clk 0:00:22.3]} 31. Bxb8 {[%clk 0:00:31.6]} 1-0

[Event "*** Titled Tuesday Blitz"]
[Site "Chess.com"]
[Date "2019.08.06"]
[Round "3"]
[White "julinha97"]
[Black "saraswathii"]
[Result "0-1"]
[WhiteElo "2219"]
[BlackElo "2344"]
[TimeControl "180+2"]
[EndTime "13:35:48 PDT"]
[Termination "saraswathii won by checkmate"]

1. e4 {[%clk 0:03:01.9]} 1... c5 {[%clk 0:02:34.1]} 2. Nf3 {[%clk 0:03:02.1]}
2... e6 {[%clk 0:02:33.6]} 3. d4 {[%clk 0:03:00.8]} 3... cxd4 {[%clk 0:02:30.7]}
4. Nxd4 {[%clk 0:03:02.7]} 4... Nf6 {[%clk 0:02:30.9]} 5. Nc3 {[%clk 0:03:03.5]}
5... Nc6 {[%clk 0:02:29.3]} 6. a3 {[%clk 0:02:59.3]} 6... d5 {[%clk 0:02:28]} 7.
exd5 {[%clk 0:02:50.4]} 7... exd5 {[%clk 0:02:29.9]} 8. Be2 {[%clk 0:02:41.1]}
8... Be6 {[%clk 0:02:29.7]} 9. O-O {[%clk 0:02:41.7]} 9... Bd6 {[%clk
0:02:23.3]} 10. h3 {[%clk 0:02:31.7]} 10... O-O {[%clk 0:02:23]} 11. Bg5 {[%clk
0:02:28.5]} 11... h6 {[%clk 0:02:23.3]} 12. Bh4 {[%clk 0:02:25.2]} 12... g5
{[%clk 0:02:23.4]} 13. Bg3 {[%clk 0:02:25.9]} 13... Bxg3 {[%clk 0:02:23.7]} 14.
fxg3 {[%clk 0:02:27.8]} 14... Qb6 {[%clk 0:02:23.6]} 15. Rxf6 {[%clk 0:02:21.4]}
15... Kg7 {[%clk 0:02:19.5]} 16. Rf2 {[%clk 0:01:51.4]} 16... Qxd4 {[%clk
0:02:05.8]} 17. Qxd4+ {[%clk 0:01:48.9]} 17... Nxd4 {[%clk 0:02:07.7]} 18. Bd3
{[%clk 0:01:50.5]} 18... Rac8 {[%clk 0:01:59.9]} 19. Re1 {[%clk 0:01:38.1]}
19... Rfd8 {[%clk 0:01:55.2]} 20. g4 {[%clk 0:01:35]} 20... a6 {[%clk
0:01:53.3]} 21. a4 {[%clk 0:01:32.5]} 21... Rc5 {[%clk 0:01:49]} 22. Ne2 {[%clk
0:01:29]} 22... Nxc2 {[%clk 0:01:42.5]} 23. Bxc2 {[%clk 0:01:26.3]} 23... Rxc2
{[%clk 0:01:42.5]} 24. Nd4 {[%clk 0:01:21]} 24... Rxf2 {[%clk 0:01:39.9]} 25.
Kxf2 {[%clk 0:01:15.4]} 25... Kf6 {[%clk 0:01:34.3]} 26. Ke3 {[%clk 0:01:12]}
26... Rc8 {[%clk 0:01:32.5]} 27. Kd3 {[%clk 0:01:11.2]} 27... Re8 {[%clk
0:01:21.5]} 28. Rc1 {[%clk 0:01:08.8]} 28... Re7 {[%clk 0:01:15.8]} 29. Rf1+
{[%clk 0:01:08.1]} 29... Ke5 {[%clk 0:01:15]} 30. Re1+ {[%clk 0:01:08.5]} 30...
Kd6 {[%clk 0:01:15.5]} 31. Rf1 {[%clk 0:00:53.4]} 31... Rc7 {[%clk 0:00:53.4]}
32. Rf6 {[%clk 0:00:50.5]} 32... Rc1 {[%clk 0:00:52.7]} 33. Rxh6 {[%clk
0:00:50.8]} 33... Rg1 {[%clk 0:00:53]} 34. Nf5+ {[%clk 0:00:44.2]} 34... Ke5
{[%clk 0:00:52.5]} 35. Ne3 {[%clk 0:00:45.7]} 35... d4 {[%clk 0:00:50.3]} 36.
Nc4+ {[%clk 0:00:42.6]} 36... Bxc4+ {[%clk 0:00:51.2]} 37. Kxc4 {[%clk
0:00:44.5]} 37... Rxg2 {[%clk 0:00:52.5]} 38. b4 {[%clk 0:00:44.8]} 38... Rg3
{[%clk 0:00:50.1]} 39. Rh5 {[%clk 0:00:43.3]} 39... Rc3# {[%clk 0:00:50.2]} 0-1

[Event "*** Titled Tuesday Blitz"]
[Site "Chess.com"]
[Date "2019.08.06"]
[Round "3"]
[White "chito89"]
[Black "Leonid_Starozhilov"]
[Result "1-0"]
[WhiteElo "2835"]
[BlackElo "2713"]
[TimeControl "180+2"]
[EndTime "13:35:49 PDT"]
[Termination "chito89 won by resignation"]

1. e4 {[%clk 0:02:44.9]} 1... g6 {[%clk 0:03:00.9]} 2. d4 {[%clk 0:02:45.4]}
2... Bg7 {[%clk 0:03:02.3]} 3. Nc3 {[%clk 0:02:47]} 3... d6 {[%clk 0:03:03.7]}
4. Bg5 {[%clk 0:02:48.2]} 4... Nc6 {[%clk 0:03:02.8]} 5. d5 {[%clk 0:02:46.9]}
5... Nd4 {[%clk 0:03:03.1]} 6. Qd2 {[%clk 0:02:45.6]} 6... c5 {[%clk 0:02:54.6]}
7. h4 {[%clk 0:02:42.1]} 7... h5 {[%clk 0:02:48.6]} 8. Nge2 {[%clk 0:02:38.5]}
8... Qb6 {[%clk 0:02:45.7]} 9. O-O-O {[%clk 0:02:34.7]} 9... Nxe2+ {[%clk
0:02:26.6]} 10. Bxe2 {[%clk 0:02:35]} 10... Nf6 {[%clk 0:02:27.7]} 11. f3 {[%clk
0:02:18.2]} 11... Bd7 {[%clk 0:02:16.7]} 12. e5 {[%clk 0:02:14.5]} 12... dxe5
{[%clk 0:02:14.1]} 13. d6 {[%clk 0:02:16]} 13... e6 {[%clk 0:01:55.1]} 14. Bxf6
{[%clk 0:01:59.5]} 14... Bxf6 {[%clk 0:01:55.9]} 15. Ne4 {[%clk 0:01:58.4]}
15... Bg7 {[%clk 0:01:56]} 16. Kb1 {[%clk 0:01:59.6]} 16... O-O-O {[%clk
0:01:09.3]} 17. Qc3 {[%clk 0:01:53.1]} 17... Bc6 {[%clk 0:00:56.7]} 18. Nxc5
{[%clk 0:01:45.1]} 18... Kb8 {[%clk 0:00:51.9]} 19. a4 {[%clk 0:01:40.7]} 19...
a5 {[%clk 0:00:38.6]} 20. f4 {[%clk 0:01:16]} 20... exf4 {[%clk 0:00:29.1]} 21.
Qxg7 {[%clk 0:01:17.4]} 21... Qxc5 {[%clk 0:00:30.4]} 22. Qxf7 {[%clk
0:01:12.1]} 22... Bxa4 {[%clk 0:00:14.9]} 23. b3 {[%clk 0:00:57.8]} 23... Bc6
{[%clk 0:00:16.2]} 24. Qxf4 {[%clk 0:00:49.2]} 24... Rhf8 {[%clk 0:00:16.7]} 25.
Qg3 {[%clk 0:00:50.2]} 25... e5 {[%clk 0:00:11.7]} 26. Qxg6 {[%clk 0:00:44.8]}
26... Rg8 {[%clk 0:00:12.8]} 27. Qf6 {[%clk 0:00:44.7]} 27... Bxg2 {[%clk
0:00:10.6]} 28. Rhe1 {[%clk 0:00:38.4]} 28... Be4 {[%clk 0:00:07.2]} 29. Bc4
{[%clk 0:00:39.3]} 29... Bc6 {[%clk 0:00:07.6]} 30. Bxg8 {[%clk 0:00:36.2]}
30... Rxg8 {[%clk 0:00:06.7]} 31. d7 {[%clk 0:00:37.5]} 1-0

[Event "*** Titled Tuesday Blitz"]
[Site "Chess.com"]
[Date "2019.08.06"]
[Round "3"]
[White "VeraNebolsina"]
[Black "Kargan90"]
[Result "1-0"]
[WhiteElo "2383"]
[BlackElo "2524"]
[TimeControl "180+2"]
[EndTime "13:36:00 PDT"]
[Termination "VeraNebolsina won by resignation"]

1. e4 {[%clk 0:03:01.9]} 1... c5 {[%clk 0:02:58.8]} 2. Nc3 {[%clk 0:03:01.6]}
2... Nc6 {[%clk 0:02:58.8]} 3. Bb5 {[%clk 0:03:01.7]} 3... e6 {[%clk 0:02:18.5]}
4. Nf3 {[%clk 0:02:57.1]} 4... Nge7 {[%clk 0:02:18.7]} 5. O-O {[%clk 0:02:57.3]}
5... Nd4 {[%clk 0:02:18.3]} 6. Bd3 {[%clk 0:02:54.6]} 6... Nec6 {[%clk
0:02:18.6]} 7. Nxd4 {[%clk 0:02:50.5]} 7... cxd4 {[%clk 0:02:18.6]} 8. Ne2
{[%clk 0:02:50.7]} 8... Bc5 {[%clk 0:02:19.1]} 9. c3 {[%clk 0:02:51.3]} 9... a5
{[%clk 0:02:14.1]} 10. Bb5 {[%clk 0:02:47.4]} 10... O-O {[%clk 0:02:12.5]} 11.
Qa4 {[%clk 0:02:41.1]} 11... Qb6 {[%clk 0:02:11.8]} 12. Bxc6 {[%clk 0:02:38.9]}
12... bxc6 {[%clk 0:01:43.3]} 13. cxd4 {[%clk 0:02:38.6]} 13... Bb4 {[%clk
0:01:40.2]} 14. d3 {[%clk 0:02:39]} 14... Ba6 {[%clk 0:01:39.9]} 15. Qc2 {[%clk
0:02:39.4]} 15... d5 {[%clk 0:01:39.3]} 16. Be3 {[%clk 0:02:32.8]} 16... a4
{[%clk 0:01:35.5]} 17. Rfd1 {[%clk 0:02:31.4]} 17... Rfc8 {[%clk 0:01:33.7]} 18.
Rac1 {[%clk 0:02:30.3]} 18... Qa5 {[%clk 0:01:30.9]} 19. Nc3 {[%clk 0:02:13.4]}
19... a3 {[%clk 0:01:31.7]} 20. b3 {[%clk 0:02:12.9]} 20... h6 {[%clk
0:01:23.4]} 21. Na4 {[%clk 0:02:12]} 21... Bb5 {[%clk 0:01:20.6]} 22. Nc5 {[%clk
0:02:07.8]} 22... Qd8 {[%clk 0:01:20.3]} 23. Bd2 {[%clk 0:02:05.5]} 23... Bxc5
{[%clk 0:01:19.6]} 24. dxc5 {[%clk 0:01:46.4]} 24... d4 {[%clk 0:01:08.3]} 25.
Bf4 {[%clk 0:01:44.3]} 25... Qf6 {[%clk 0:01:05.9]} 26. Bd6 {[%clk 0:01:42.3]}
26... e5 {[%clk 0:01:07.1]} 27. Qe2 {[%clk 0:01:41.5]} 27... g5 {[%clk
0:01:06.4]} 28. Qg4 {[%clk 0:01:31.8]} 28... Re8 {[%clk 0:00:56.4]} 29. Rc2
{[%clk 0:01:31.8]} 29... Ra7 {[%clk 0:00:53.7]} 30. g3 {[%clk 0:01:30.6]} 30...
Kg7 {[%clk 0:00:53.9]} 31. f4 {[%clk 0:01:27.9]} 31... exf4 {[%clk 0:00:49]} 32.
gxf4 {[%clk 0:01:28.5]} 32... Qe6 {[%clk 0:00:49.6]} 33. f5 {[%clk 0:01:25.6]}
33... Qd7 {[%clk 0:00:47.3]} 34. e5 {[%clk 0:01:15.9]} 34... f6 {[%clk
0:00:44.8]} 35. e6 {[%clk 0:01:13.7]} 35... Qb7 {[%clk 0:00:45.1]} 36. Qxd4
{[%clk 0:01:12.8]} 36... Qa6 {[%clk 0:00:43.2]} 37. Rg2 {[%clk 0:00:57.3]} 37...
Qa5 {[%clk 0:00:14]} 38. h4 {[%clk 0:00:52]} 1-0

[Event "*** Titled Tuesday Blitz"]
[Site "Chess.com"]
[Date "2019.08.06"]
[Round "3"]
[White "cukus"]
[Black "csati17"]
[Result "0-1"]
[WhiteElo "2393"]
[BlackElo "2499"]
[TimeControl "180+2"]
[EndTime "13:36:00 PDT"]
[Termination "csati17 won by checkmate"]

1. e4 {[%clk 0:03:01.9]} 1... e6 {[%clk 0:03:00.9]} 2. d4 {[%clk 0:03:02]} 2...
d5 {[%clk 0:03:02.8]} 3. Nc3 {[%clk 0:03:02.9]} 3... Bb4 {[%clk 0:03:03.4]} 4.
e5 {[%clk 0:03:02]} 4... Ne7 {[%clk 0:03:04.4]} 5. a3 {[%clk 0:03:03.1]} 5...
Bxc3+ {[%clk 0:03:05.6]} 6. bxc3 {[%clk 0:03:05]} 6... b6 {[%clk 0:03:07.5]} 7.
Qg4 {[%clk 0:03:02.6]} 7... Ng6 {[%clk 0:03:09]} 8. h4 {[%clk 0:03:02.8]} 8...
h5 {[%clk 0:03:10.5]} 9. Qd1 {[%clk 0:03:02.7]} 9... Qd7 {[%clk 0:03:10.6]} 10.
Bg5 {[%clk 0:02:52.4]} 10... Ba6 {[%clk 0:03:10.7]} 11. Bxa6 {[%clk 0:02:52.4]}
11... Nxa6 {[%clk 0:03:12.6]} 12. Ne2 {[%clk 0:02:54]} 12... c5 {[%clk
0:03:01.3]} 13. Ng3 {[%clk 0:02:51.1]} 13... cxd4 {[%clk 0:03:01.5]} 14. cxd4
{[%clk 0:02:51.7]} 14... Rc8 {[%clk 0:02:58.5]} 15. Nxh5 {[%clk 0:02:39.3]}
15... Kf8 {[%clk 0:02:59.5]} 16. Nxg7 {[%clk 0:02:14]} 16... Kxg7 {[%clk
0:02:49.6]} 17. Bf6+ {[%clk 0:02:15.2]} 17... Kf8 {[%clk 0:02:35]} 18. Bxh8
{[%clk 0:02:09.1]} 18... Nxh8 {[%clk 0:02:36.9]} 19. h5 {[%clk 0:02:10.5]} 19...
Qa4 {[%clk 0:02:30.1]} 20. O-O {[%clk 0:01:55]} 20... Rc4 {[%clk 0:02:09.6]} 21.
c3 {[%clk 0:01:42.4]} 21... Qc6 {[%clk 0:01:26]} 22. Qg4 {[%clk 0:01:30.5]}
22... Nc7 {[%clk 0:01:14.1]} 23. Qg5 {[%clk 0:01:25.8]} 23... Ne8 {[%clk
0:01:12.6]} 24. f4 {[%clk 0:00:52.9]} 24... Ng7 {[%clk 0:00:31.8]} 25. h6 {[%clk
0:00:52.2]} 25... Nf5 {[%clk 0:00:31.9]} 26. g4 {[%clk 0:00:51.3]} 26... Rxc3
{[%clk 0:00:18.4]} 27. gxf5 {[%clk 0:00:49.2]} 27... exf5 {[%clk 0:00:18.8]} 28.
Qg7+ {[%clk 0:00:42.2]} 28... Ke7 {[%clk 0:00:18.6]} 29. Qxh8 {[%clk 0:00:33.3]}
29... Qg6+ {[%clk 0:00:19.3]} 30. Kh2 {[%clk 0:00:27.2]} 30... Qg3+ {[%clk
0:00:15.4]} 31. Kh1 {[%clk 0:00:26.6]} 31... Qh3+ {[%clk 0:00:17.3]} 32. Kg1
{[%clk 0:00:27.9]} 32... Rg3+ {[%clk 0:00:18]} 33. Kf2 {[%clk 0:00:29.3]} 33...
Qg2+ {[%clk 0:00:19.7]} 34. Ke1 {[%clk 0:00:30.6]} 34... Re3+ {[%clk 0:00:21.4]}
35. Kd1 {[%clk 0:00:32.1]} 35... Qe2+ {[%clk 0:00:22.9]} 36. Kc1 {[%clk
0:00:32.7]} 36... Rc3+ {[%clk 0:00:24.6]} 37. Kb1 {[%clk 0:00:34.2]} 37... Qc2#
{[%clk 0:00:26.2]} 0-1